[Event "Late-Titled-Tuesday-Blitz-October-24-2023"]
[Site "Chess.com"]
[Date "2023.10.24"]
[Round "3"]
[White "acertijo08"]
[Black "randy296"]
[Result "1-0"]
[WhiteElo "2349"]
[BlackElo "2070"]
[TimeControl "180+1"]
[EndTime "14:30:23 PDT"]
[Termination "acertijo08 won on time"]

1. e4 {[%clk 0:03:00.9]} 1... c5 {[%clk 0:02:58]} 2. Nf3 {[%clk 0:03:01.1]} 2...
d6 {[%clk 0:02:57.6]} 3. d4 {[%clk 0:03:01.7]} 3... cxd4 {[%clk 0:02:57.6]} 4.
Nxd4 {[%clk 0:03:02.6]} 4... Nf6 {[%clk 0:02:57.4]} 5. Nc3 {[%clk 0:03:02.9]}
5... g6 {[%clk 0:02:57.5]} 6. Be3 {[%clk 0:03:01.9]} 6... Bg7 {[%clk 0:02:57.3]}
7. f3 {[%clk 0:03:02.4]} 7... O-O {[%clk 0:02:56]} 8. Qd2 {[%clk 0:03:02.9]}
8... Nc6 {[%clk 0:02:56]} 9. O-O-O {[%clk 0:03:03]} 9... Nxd4 {[%clk 0:02:54.8]}
10. Bxd4 {[%clk 0:03:02.5]} 10... Be6 {[%clk 0:02:55.4]} 11. Kb1 {[%clk
0:02:59.1]} 11... Qc7 {[%clk 0:02:55.3]} 12. g4 {[%clk 0:02:58.6]} 12... Rfc8
{[%clk 0:02:54.5]} 13. h4 {[%clk 0:02:58.6]} 13... b5 {[%clk 0:02:53]} 14. h5
{[%clk 0:02:38.8]} 14... b4 {[%clk 0:02:45.6]} 15. Nd5 {[%clk 0:02:35.8]} 15...
Bxd5 {[%clk 0:02:24.7]} 16. exd5 {[%clk 0:02:34.8]} 16... Nxd5 {[%clk
0:02:24.5]} 17. Bxg7 {[%clk 0:02:29.8]} 17... Kxg7 {[%clk 0:02:23.7]} 18. hxg6
{[%clk 0:02:29.9]} 18... fxg6 {[%clk 0:01:47.9]} 19. Qh6+ {[%clk 0:02:19.7]}
19... Kf6 {[%clk 0:01:36.5]} 20. g5+ {[%clk 0:02:15.5]} 20... Ke5 {[%clk
0:01:18.7]} 21. Qg7+ {[%clk 0:01:53.8]} 21... Nf6 {[%clk 0:01:15.2]} 22. Bd3
{[%clk 0:01:33.3]} 22... b3 {[%clk 0:01:09.4]} 23. axb3 {[%clk 0:01:29.8]} 23...
Rg8 {[%clk 0:01:05.4]} 24. Rhe1+ {[%clk 0:01:29]} 24... Kf4 {[%clk 0:01:04]} 25.
Qf7 {[%clk 0:01:14.8]} 25... Rgf8 {[%clk 0:00:57]} 26. Qe6 {[%clk 0:01:12.3]}
26... Kxg5 {[%clk 0:00:53.5]} 27. Rg1+ {[%clk 0:01:08.6]} 27... Kh6 {[%clk
0:00:53.6]} 28. f4 {[%clk 0:00:54.9]} 28... Qd7 {[%clk 0:00:49.1]} 29. Qe3
{[%clk 0:00:53.4]} 29... Kg7 {[%clk 0:00:47.6]} 30. f5 {[%clk 0:00:53.5]} 30...
Rac8 {[%clk 0:00:23.7]} 31. fxg6 {[%clk 0:00:52.4]} 31... h6 {[%clk 0:00:23.9]}
32. Rh1 {[%clk 0:00:51.1]} 32... Ng4 {[%clk 0:00:21.3]} 33. Qd4+ {[%clk
0:00:49.7]} 33... e5 {[%clk 0:00:21.3]} 34. Qg1 {[%clk 0:00:43.2]} 34... Nf2
{[%clk 0:00:20.7]} 35. Qh2 {[%clk 0:00:39.9]} 35... Ng4 {[%clk 0:00:19.2]} 36.
Qh3 {[%clk 0:00:36.9]} 36... Qe6 {[%clk 0:00:15.7]} 37. Rdg1 {[%clk 0:00:33.7]}
37... Rf4 {[%clk 0:00:15.7]} 38. Be2 {[%clk 0:00:32.1]} 38... Qf5 {[%clk
0:00:13.7]} 39. Bd3 {[%clk 0:00:29.2]} 39... e4 {[%clk 0:00:13.2]} 40. Be2
{[%clk 0:00:27]} 40... Qc5 {[%clk 0:00:11.8]} 41. c3 {[%clk 0:00:21.6]} 41...
Qg5 {[%clk 0:00:06]} 42. Bxg4 {[%clk 0:00:20]} 42... Rxg4 {[%clk 0:00:06.2]} 43.
Rxg4 {[%clk 0:00:19.5]} 43... Qd2 {[%clk 0:00:06.1]} 44. Rg2 {[%clk 0:00:18]}
44... Qf4 {[%clk 0:00:05]} 45. Qd7+ {[%clk 0:00:17.3]} 45... Kf6 {[%clk
0:00:04.2]} 46. Qxc8 {[%clk 0:00:16.9]} 46... Qf3 {[%clk 0:00:04.6]} 47. Rgg1
{[%clk 0:00:16.7]} 47... Ke5 {[%clk 0:00:04.6]} 48. Rf1 {[%clk 0:00:16.2]} 48...
Qg2 {[%clk 0:00:03.8]} 49. Qe8+ {[%clk 0:00:15]} 49... Kd5 {[%clk 0:00:03.6]}
50. Qf7+ {[%clk 0:00:14.8]} 50... Kc5 {[%clk 0:00:03.1]} 51. Qc4+ {[%clk
0:00:15]} 51... Kb6 {[%clk 0:00:03.4]} 52. Rhg1 {[%clk 0:00:15.1]} 1-0

[Event "Late-Titled-Tuesday-Blitz-October-24-2023"]
[Site "Chess.com"]
[Date "2023.10.24"]
[Round "3"]
[White "MaxLeto"]
[Black "matagordo"]
[Result "1-0"]
[WhiteElo "2554"]
[BlackElo "2287"]
[TimeControl "180+1"]
[EndTime "14:30:25 PDT"]
[Termination "MaxLeto won by resignation"]

1. g4 {[%clk 0:02:58.7]} 1... e6 {[%clk 0:03:00.1]} 2. Bg2 {[%clk 0:02:58.5]}
2... d5 {[%clk 0:03:00.6]} 3. d4 {[%clk 0:02:57.7]} 3... c5 {[%clk 0:03:00.2]}
4. c3 {[%clk 0:02:57.8]} 4... Nc6 {[%clk 0:02:59]} 5. Nf3 {[%clk 0:02:52.7]}
5... Bd6 {[%clk 0:02:58.9]} 6. Be3 {[%clk 0:02:45]} 6... Nf6 {[%clk 0:02:58.3]}
7. dxc5 {[%clk 0:02:43.5]} 7... Bc7 {[%clk 0:02:57.7]} 8. h3 {[%clk 0:02:35.6]}
8... e5 {[%clk 0:02:43.5]} 9. Nbd2 {[%clk 0:02:23.5]} 9... Be6 {[%clk
0:02:42.4]} 10. Bg5 {[%clk 0:02:16.2]} 10... h6 {[%clk 0:02:40.5]} 11. Bh4
{[%clk 0:02:15.9]} 11... g5 {[%clk 0:02:39.7]} 12. Bg3 {[%clk 0:02:13.6]} 12...
Qe7 {[%clk 0:02:34.5]} 13. b4 {[%clk 0:02:09.7]} 13... a5 {[%clk 0:02:31]} 14.
b5 {[%clk 0:01:29.5]} 14... Nd8 {[%clk 0:02:30.9]} 15. Nxe5 {[%clk 0:01:17]}
15... Qxc5 {[%clk 0:02:25.6]} 16. Nd3 {[%clk 0:01:16.2]} 16... Qe7 {[%clk
0:02:18]} 17. Bxc7 {[%clk 0:01:10.2]} 17... Qxc7 {[%clk 0:02:17.8]} 18. Rc1
{[%clk 0:01:10]} 18... a4 {[%clk 0:02:03.7]} 19. Nf3 {[%clk 0:00:42.4]} 19...
Qb6 {[%clk 0:01:51.6]} 20. Nd4 {[%clk 0:00:41.1]} 20... h5 {[%clk 0:01:43.1]}
21. gxh5 {[%clk 0:00:34.3]} 21... Rxh5 {[%clk 0:01:35.1]} 22. e3 {[%clk
0:00:31]} 22... Rh8 {[%clk 0:01:32.6]} 23. Nb4 {[%clk 0:00:25.7]} 23... Qd6
{[%clk 0:01:24.3]} 24. a3 {[%clk 0:00:20.5]} 24... Rg8 {[%clk 0:01:20]} 25. Qf3
{[%clk 0:00:11.2]} 25... Rg6 {[%clk 0:01:12.4]} 26. Nf5 {[%clk 0:00:03.2]} 26...
Bxf5 {[%clk 0:01:11.4]} 27. Qxf5 {[%clk 0:00:03.3]} 27... Qe6 {[%clk 0:01:05]}
28. Qf3 {[%clk 0:00:02.4]} 28... g4 {[%clk 0:00:53.9]} 29. hxg4 {[%clk
0:00:02.2]} 29... Rc8 {[%clk 0:00:36.1]} 30. Rh8+ {[%clk 0:00:01.4]} 30... Ke7
{[%clk 0:00:33.9]} 31. Nxd5+ {[%clk 0:00:01.4]} 31... Nxd5 {[%clk 0:00:33.8]}
32. Qxd5 {[%clk 0:00:02.3]} 32... Qxg4 {[%clk 0:00:27.4]} 33. Bf3 {[%clk
0:00:02.5]} 33... Qg1+ {[%clk 0:00:08.9]} 34. Kd2 {[%clk 0:00:02.5]} 34... Qg5
{[%clk 0:00:06.7]} 35. Ke2 {[%clk 0:00:02.2]} 35... Qxd5 {[%clk 0:00:06.5]} 36.
Bxd5 {[%clk 0:00:02.2]} 36... Rd6 {[%clk 0:00:07.4]} 37. c4 {[%clk 0:00:02.5]}
37... Rc7 {[%clk 0:00:07.6]} 38. e4 {[%clk 0:00:03.1]} 38... Ne6 {[%clk
0:00:07.4]} 39. e5 {[%clk 0:00:03.4]} 39... Rxd5 {[%clk 0:00:06.9]} 40. cxd5
{[%clk 0:00:02.6]} 40... Nd4+ {[%clk 0:00:07.2]} 41. Kd3 {[%clk 0:00:02.7]}
41... Rxc1 {[%clk 0:00:07.4]} 42. Kxd4 {[%clk 0:00:03.3]} 42... Rd1+ {[%clk
0:00:07.6]} 43. Kc5 {[%clk 0:00:03.6]} 43... Rc1+ {[%clk 0:00:08.1]} 44. Kb6
{[%clk 0:00:04.2]} 44... Rc3 {[%clk 0:00:07.8]} 45. Kxb7 {[%clk 0:00:04.1]}
45... Rxa3 {[%clk 0:00:08.5]} 46. b6 {[%clk 0:00:04.7]} 46... Rb3 {[%clk
0:00:08.5]} 47. Kc6 {[%clk 0:00:05.1]} 47... a3 {[%clk 0:00:09]} 48. b7 {[%clk
0:00:05.7]} 48... a2 {[%clk 0:00:09.6]} 49. Ra8 {[%clk 0:00:05.6]} 49... Rb2
{[%clk 0:00:08.7]} 50. Rxa2 {[%clk 0:00:05.7]} 50... Rxa2 {[%clk 0:00:06.6]} 51.
b8=Q {[%clk 0:00:06.3]} 51... Rc2+ {[%clk 0:00:07.4]} 52. Kb7 {[%clk 0:00:06.3]}
52... Rb2+ {[%clk 0:00:08]} 53. Kc8 {[%clk 0:00:06.8]} 53... Rc2+ {[%clk
0:00:07.9]} 54. Qc7+ {[%clk 0:00:06.9]} 54... Rxc7+ {[%clk 0:00:07.9]} 55. Kxc7
{[%clk 0:00:07.8]} 55... f5 {[%clk 0:00:08.3]} 56. d6+ {[%clk 0:00:08]} 56...
Ke8 {[%clk 0:00:07.6]} 57. d7+ {[%clk 0:00:08.9]} 57... Ke7 {[%clk 0:00:08.3]}
58. d8=Q+ {[%clk 0:00:09.8]} 1-0

[Event "Late-Titled-Tuesday-Blitz-October-24-2023"]
[Site "Chess.com"]
[Date "2023.10.24"]
[Round "3"]
[White "muchojogo"]
[Black "alexrustemov"]
[Result "0-1"]
[WhiteElo "2538"]
[BlackElo "2785"]
[TimeControl "180+1"]
[EndTime "14:30:26 PDT"]
[Termination "alexrustemov won by resignation"]

1. e4 {[%clk 0:03:00.9]} 1... e6 {[%clk 0:02:58.6]} 2. d4 {[%clk 0:03:00.4]}
2... d5 {[%clk 0:02:56]} 3. exd5 {[%clk 0:03:01.3]} 3... exd5 {[%clk 0:02:55.7]}
4. Nf3 {[%clk 0:03:02]} 4... Bf5 {[%clk 0:02:55.1]} 5. Bd3 {[%clk 0:03:01.9]}
5... Bxd3 {[%clk 0:02:54.7]} 6. Qxd3 {[%clk 0:03:02.8]} 6... Nc6 {[%clk
0:02:54.8]} 7. O-O {[%clk 0:03:02.4]} 7... Bd6 {[%clk 0:02:55.2]} 8. c3 {[%clk
0:03:02.1]} 8... Nge7 {[%clk 0:02:55.5]} 9. Re1 {[%clk 0:03:00.3]} 9... Qd7
{[%clk 0:02:55.8]} 10. b4 {[%clk 0:02:56.7]} 10... a6 {[%clk 0:02:55]} 11. a4
{[%clk 0:02:56.3]} 11... O-O {[%clk 0:02:54.6]} 12. Bg5 {[%clk 0:02:53]} 12...
Qf5 {[%clk 0:02:50.1]} 13. Qxf5 {[%clk 0:02:53]} 13... Nxf5 {[%clk 0:02:50.8]}
14. Nbd2 {[%clk 0:02:53.6]} 14... Rfe8 {[%clk 0:02:46.9]} 15. Nb3 {[%clk
0:02:50.4]} 15... b6 {[%clk 0:02:35.8]} 16. Kf1 {[%clk 0:02:44.2]} 16... f6
{[%clk 0:02:34.7]} 17. Bd2 {[%clk 0:02:43.4]} 17... Kf7 {[%clk 0:02:33.6]} 18.
a5 {[%clk 0:02:34.3]} 18... Rxe1+ {[%clk 0:02:29]} 19. Kxe1 {[%clk 0:02:31.3]}
19... Ra7 {[%clk 0:02:09.5]} 20. Ke2 {[%clk 0:02:29.3]} 20... h5 {[%clk
0:02:07.8]} 21. Kd3 {[%clk 0:02:28.7]} 21... g5 {[%clk 0:02:01.7]} 22. h3 {[%clk
0:02:11]} 22... h4 {[%clk 0:02:00.7]} 23. c4 {[%clk 0:02:07.9]} 23... dxc4+
{[%clk 0:01:58.5]} 24. Kxc4 {[%clk 0:02:08.8]} 24... b5+ {[%clk 0:01:57.6]} 25.
Kd5 {[%clk 0:02:05.8]} 25... Nfe7+ {[%clk 0:01:47.7]} 26. Ke4 {[%clk 0:02:05.3]}
26... Nxb4 {[%clk 0:01:45.7]} 27. Bxb4 {[%clk 0:01:52.5]} 27... Bxb4 {[%clk
0:01:45.3]} 28. Rc1 {[%clk 0:01:53.4]} 28... c6 {[%clk 0:01:42.3]} 29. g3 {[%clk
0:01:42.6]} 29... hxg3 {[%clk 0:01:39.1]} 30. fxg3 {[%clk 0:01:43.5]} 30... Kg6
{[%clk 0:01:35]} 31. h4 {[%clk 0:01:41.4]} 31... g4 {[%clk 0:01:32.6]} 32. Nh2
{[%clk 0:01:35.7]} 32... Bd6 {[%clk 0:01:31.9]} 33. Nf1 {[%clk 0:01:20]} 33...
f5+ {[%clk 0:01:31.5]} 34. Kd3 {[%clk 0:01:19.3]} 34... Rc7 {[%clk 0:01:30.4]}
35. Nc5 {[%clk 0:01:17.3]} 35... Bxc5 {[%clk 0:01:22.8]} 36. Rxc5 {[%clk
0:01:16.5]} 36... Nd5 {[%clk 0:01:17.8]} 37. Ne3 {[%clk 0:01:08.7]} 37... Nxe3
{[%clk 0:01:13.8]} 38. Kxe3 {[%clk 0:01:09.6]} 38... Re7+ {[%clk 0:01:14.3]} 39.
Kd3 {[%clk 0:01:08.8]} 39... Re6 {[%clk 0:01:14.7]} 40. d5 {[%clk 0:01:04.6]}
40... cxd5 {[%clk 0:01:11.9]} 41. Rxd5 {[%clk 0:01:05.5]} 41... Kf6 {[%clk
0:01:06.3]} 42. Kd4 {[%clk 0:01:00.9]} 42... Rc6 {[%clk 0:01:01.1]} 43. Rd8
{[%clk 0:00:47.1]} 43... Ke7 {[%clk 0:00:59.2]} 44. Rb8 {[%clk 0:00:45]} 44...
Kd6 {[%clk 0:00:49.3]} 45. h5 {[%clk 0:00:44.4]} 45... Rc4+ {[%clk 0:00:44.6]}
46. Kd3 {[%clk 0:00:43.8]} 46... Ke5 {[%clk 0:00:35.8]} 47. Rb6 {[%clk
0:00:39.9]} 47... Ra4 {[%clk 0:00:33.4]} 48. Rxa6 {[%clk 0:00:39.4]} 48... Ra3+
{[%clk 0:00:33.3]} 49. Ke2 {[%clk 0:00:38.6]} 49... Rxg3 {[%clk 0:00:33.6]} 50.
Rb6 {[%clk 0:00:38]} 50... f4 {[%clk 0:00:26.3]} 51. Rxb5+ {[%clk 0:00:36.7]}
51... Ke4 {[%clk 0:00:26.8]} 52. Rb4+ {[%clk 0:00:36.7]} 52... Kf5 {[%clk
0:00:27.1]} 53. Ra4 {[%clk 0:00:30.4]} 53... f3+ {[%clk 0:00:25.5]} 54. Ke3
{[%clk 0:00:30.6]} 54... Rg2 {[%clk 0:00:23.5]} 55. a6 {[%clk 0:00:29.2]} 55...
Re2+ {[%clk 0:00:23.7]} 56. Kd3 {[%clk 0:00:28.8]} 56... Re8 {[%clk 0:00:24.1]}
57. a7 {[%clk 0:00:22.1]} 57... f2 {[%clk 0:00:24.3]} 58. Ra1 {[%clk 0:00:12.7]}
58... g3 {[%clk 0:00:24.6]} 59. h6 {[%clk 0:00:10.4]} 59... g2 {[%clk
0:00:24.5]} 0-1

[Event "Late-Titled-Tuesday-Blitz-October-24-2023"]
[Site "Chess.com"]
[Date "2023.10.24"]
[Round "3"]
[White "Willi_Skibbe"]
[Black "ExchangeAB"]
[Result "1-0"]
[WhiteElo "2236"]
[BlackElo "2513"]
[TimeControl "180+1"]
[EndTime "14:30:32 PDT"]
[Termination "Willi_Skibbe won by resignation"]

1. d4 {[%clk 0:03:00.9]} 1... d6 {[%clk 0:02:59.8]} 2. e4 {[%clk 0:02:58]} 2...
g6 {[%clk 0:02:59.6]} 3. c4 {[%clk 0:02:57.1]} 3... Bg7 {[%clk 0:02:59.4]} 4.
Nc3 {[%clk 0:02:57]} 4... c6 {[%clk 0:02:54.7]} 5. Be3 {[%clk 0:02:51.4]} 5...
Qc7 {[%clk 0:02:53.1]} 6. Nf3 {[%clk 0:02:50.8]} 6... e5 {[%clk 0:02:51.7]} 7.
d5 {[%clk 0:02:50.7]} 7... Ne7 {[%clk 0:02:49]} 8. Nd2 {[%clk 0:02:48.6]} 8...
O-O {[%clk 0:02:37.8]} 9. Be2 {[%clk 0:02:42]} 9... c5 {[%clk 0:02:33.6]} 10.
O-O {[%clk 0:02:37.3]} 10... f5 {[%clk 0:02:33.7]} 11. f4 {[%clk 0:02:37.6]}
11... a6 {[%clk 0:02:28.2]} 12. a4 {[%clk 0:02:33]} 12... Nd7 {[%clk 0:02:24.6]}
13. Bd3 {[%clk 0:02:22.7]} 13... exf4 {[%clk 0:02:22.9]} 14. Bxf4 {[%clk
0:02:20.7]} 14... Ne5 {[%clk 0:02:23.1]} 15. Qc2 {[%clk 0:02:19.2]} 15... Bd7
{[%clk 0:02:10.9]} 16. Rae1 {[%clk 0:02:14.1]} 16... Rae8 {[%clk 0:02:06.7]} 17.
exf5 {[%clk 0:02:12.5]} 17... Nxf5 {[%clk 0:02:05.9]} 18. Nde4 {[%clk
0:01:44.3]} 18... Nd4 {[%clk 0:02:01.9]} 19. Qd1 {[%clk 0:01:43.9]} 19... Bg4
{[%clk 0:01:49.7]} 20. Qb1 {[%clk 0:01:24.5]} 20... Bf5 {[%clk 0:01:45.8]} 21.
Bxe5 {[%clk 0:01:13.8]} 21... Rxe5 {[%clk 0:01:39.5]} 22. Ng5 {[%clk 0:01:12.6]}
22... Qe7 {[%clk 0:01:11.6]} 23. Bxf5 {[%clk 0:01:04.1]} 23... Qxg5 {[%clk
0:01:08.3]} 24. Rxe5 {[%clk 0:01:03.2]} 24... Bxe5 {[%clk 0:01:05.7]} 25. Be6+
{[%clk 0:01:00.7]} 25... Nxe6 {[%clk 0:01:02.9]} 26. dxe6 {[%clk 0:00:54.2]}
26... Qe3+ {[%clk 0:00:55.4]} 27. Kh1 {[%clk 0:00:54.2]} 27... Bxc3 {[%clk
0:00:54.8]} 28. bxc3 {[%clk 0:00:52.3]} 28... Rxf1+ {[%clk 0:00:48.6]} 29. Qxf1
{[%clk 0:00:50.8]} 29... Qxe6 {[%clk 0:00:49]} 30. h3 {[%clk 0:00:51.6]} 30...
Qe4 {[%clk 0:00:37]} 31. a5 {[%clk 0:00:48.6]} 31... Kg7 {[%clk 0:00:35.7]} 32.
Kh2 {[%clk 0:00:48.6]} 32... h5 {[%clk 0:00:34.7]} 33. h4 {[%clk 0:00:45]} 33...
Qxh4+ {[%clk 0:00:33.4]} 34. Kg1 {[%clk 0:00:44.9]} 34... Qe4 {[%clk 0:00:33.2]}
35. Kh2 {[%clk 0:00:45.5]} 35... h4 {[%clk 0:00:32.3]} 36. Qd1 {[%clk
0:00:38.2]} 36... Qf4+ {[%clk 0:00:26.9]} 37. Kh1 {[%clk 0:00:37.2]} 37... g5
{[%clk 0:00:26.7]} 38. Qd5 {[%clk 0:00:35.6]} 38... Qf1+ {[%clk 0:00:15.3]} 39.
Kh2 {[%clk 0:00:35.3]} 39... Qf4+ {[%clk 0:00:15.8]} 40. Kh1 {[%clk 0:00:35.2]}
40... Qc1+ {[%clk 0:00:15.3]} 41. Kh2 {[%clk 0:00:35]} 41... Qxc3 {[%clk
0:00:15.7]} 42. Qxb7+ {[%clk 0:00:34]} 42... Kh6 {[%clk 0:00:15.8]} 43. Qf7
{[%clk 0:00:31.6]} 43... Qg3+ {[%clk 0:00:15.2]} 44. Kh1 {[%clk 0:00:30.8]}
44... Qe1+ {[%clk 0:00:15]} 45. Kh2 {[%clk 0:00:31.2]} 45... Qe5+ {[%clk
0:00:15.9]} 46. Kh1 {[%clk 0:00:31.5]} 46... g4 {[%clk 0:00:16.3]} 47. Qf8+
{[%clk 0:00:31.6]} 47... Kg5 {[%clk 0:00:16.4]} 48. Qg8+ {[%clk 0:00:30.2]}
48... Kf5 {[%clk 0:00:16.8]} 49. Qh7+ {[%clk 0:00:29.3]} 49... Kf4 {[%clk
0:00:15.1]} 50. Qxh4 {[%clk 0:00:28.3]} 50... Qa1+ {[%clk 0:00:13.9]} 51. Kh2
{[%clk 0:00:28.4]} 51... Qxa5 {[%clk 0:00:13.8]} 52. Qf6+ {[%clk 0:00:24]} 52...
Ke4 {[%clk 0:00:13.1]} 53. Qxd6 {[%clk 0:00:21.9]} 53... Qb4 {[%clk 0:00:08.6]}
54. Qd5+ {[%clk 0:00:20]} 54... Ke3 {[%clk 0:00:08.7]} 55. Qg5+ {[%clk
0:00:16.6]} 55... Kd4 {[%clk 0:00:07.6]} 56. Qxg4+ {[%clk 0:00:16.8]} 56... Kc3
{[%clk 0:00:08.3]} 57. Qf3+ {[%clk 0:00:14.4]} 57... Kxc4 {[%clk 0:00:08.5]} 58.
g4 {[%clk 0:00:15]} 58... Kb5 {[%clk 0:00:08.2]} 59. Kh3 {[%clk 0:00:13.3]}
59... a5 {[%clk 0:00:08.7]} 60. g5 {[%clk 0:00:13.7]} 60... a4 {[%clk
0:00:09.3]} 61. g6 {[%clk 0:00:13.1]} 61... Qb2 {[%clk 0:00:09.3]} 62. Qb7+
{[%clk 0:00:12]} 62... Kc4 {[%clk 0:00:08.4]} 63. Qxb2 {[%clk 0:00:12.9]} 1-0

[Event "Late-Titled-Tuesday-Blitz-October-24-2023"]
[Site "Chess.com"]
[Date "2023.10.24"]
[Round "3"]
[White "sari07"]
[Black "Haykoooo0o"]
[Result "1-0"]
[WhiteElo "2268"]
[BlackElo "2438"]
[TimeControl "180+1"]
[EndTime "14:30:34 PDT"]
[Termination "sari07 won by checkmate"]

1. Nf3 {[%clk 0:02:58]} 1... d5 {[%clk 0:02:56.6]} 2. c4 {[%clk 0:02:56.1]} 2...
c6 {[%clk 0:02:56.3]} 3. g3 {[%clk 0:02:53.3]} 3... Nf6 {[%clk 0:02:55.9]} 4.
Bg2 {[%clk 0:02:53.8]} 4... Bf5 {[%clk 0:02:56.7]} 5. O-O {[%clk 0:02:53.4]}
5... e6 {[%clk 0:02:57]} 6. b3 {[%clk 0:02:46.5]} 6... h6 {[%clk 0:02:57]} 7.
Bb2 {[%clk 0:02:46]} 7... Be7 {[%clk 0:02:57.2]} 8. d3 {[%clk 0:02:44.4]} 8...
O-O {[%clk 0:02:57]} 9. Nbd2 {[%clk 0:02:44.4]} 9... Bh7 {[%clk 0:02:57.2]} 10.
a3 {[%clk 0:02:37.7]} 10... Nbd7 {[%clk 0:02:52.2]} 11. Qc2 {[%clk 0:02:33.1]}
11... Ne8 {[%clk 0:02:51.8]} 12. e4 {[%clk 0:02:23.5]} 12... Bf6 {[%clk
0:02:49.3]} 13. Rfe1 {[%clk 0:02:16.7]} 13... Bxb2 {[%clk 0:02:44.2]} 14. Qxb2
{[%clk 0:02:17.6]} 14... Nc5 {[%clk 0:02:38.7]} 15. Bf1 {[%clk 0:02:01.2]} 15...
Nf6 {[%clk 0:02:35.2]} 16. b4 {[%clk 0:01:39.8]} 16... dxe4 {[%clk 0:02:24.3]}
17. bxc5 {[%clk 0:01:39.5]} 17... exf3 {[%clk 0:02:23.9]} 18. Nxf3 {[%clk
0:01:38.5]} 18... Qc7 {[%clk 0:02:17.1]} 19. d4 {[%clk 0:01:34.9]} 19... Rfd8
{[%clk 0:02:16.5]} 20. Rad1 {[%clk 0:01:23.9]} 20... b6 {[%clk 0:02:11.8]} 21.
cxb6 {[%clk 0:01:19.5]} 21... Qxb6 {[%clk 0:02:12.1]} 22. Qxb6 {[%clk
0:00:44.5]} 22... axb6 {[%clk 0:02:13]} 23. Ne5 {[%clk 0:00:44.8]} 23... c5
{[%clk 0:02:02.3]} 24. Bg2 {[%clk 0:00:31.3]} 24... Rac8 {[%clk 0:00:59.9]} 25.
Bb7 {[%clk 0:00:30.9]} 25... Bc2 {[%clk 0:00:37]} 26. Bxc8 {[%clk 0:00:05]}
26... Bxd1 {[%clk 0:00:37]} 27. Rxd1 {[%clk 0:00:05.7]} 27... Rxc8 {[%clk
0:00:36.7]} 28. d5 {[%clk 0:00:06.6]} 28... exd5 {[%clk 0:00:28]} 29. cxd5
{[%clk 0:00:07.5]} 29... Rd8 {[%clk 0:00:28.6]} 30. d6 {[%clk 0:00:07.6]} 30...
Nd7 {[%clk 0:00:25.3]} 31. Nc6 {[%clk 0:00:06.9]} 31... Ra8 {[%clk 0:00:23.5]}
32. Re1 {[%clk 0:00:05.5]} 32... Nf6 {[%clk 0:00:17.1]} 33. Re7 {[%clk
0:00:04.6]} 33... Rxa3 {[%clk 0:00:15]} 34. d7 {[%clk 0:00:04]} 34... Ra1+
{[%clk 0:00:13.6]} 35. Kg2 {[%clk 0:00:03.5]} 35... Nxd7 {[%clk 0:00:14.2]} 36.
Rxd7 {[%clk 0:00:04.3]} 36... Rb1 {[%clk 0:00:13.3]} 37. Rd8+ {[%clk 0:00:05.2]}
37... Kh7 {[%clk 0:00:13.2]} 38. Rb8 {[%clk 0:00:05]} 38... c4 {[%clk
0:00:13.4]} 39. Nd4 {[%clk 0:00:04.6]} 39... c3 {[%clk 0:00:13.4]} 40. Kf3
{[%clk 0:00:04.3]} 40... Rb4 {[%clk 0:00:12.2]} 41. Ke3 {[%clk 0:00:04.2]} 41...
Rc4 {[%clk 0:00:11]} 42. Kd3 {[%clk 0:00:04.3]} 42... c2 {[%clk 0:00:10.1]} 43.
Nxc2 {[%clk 0:00:03.5]} 43... Rc6 {[%clk 0:00:10.5]} 44. Nd4 {[%clk 0:00:03.4]}
44... Rd6 {[%clk 0:00:11.2]} 45. Kc4 {[%clk 0:00:03.3]} 45... Rf6 {[%clk
0:00:11.1]} 46. f4 {[%clk 0:00:03.9]} 46... g5 {[%clk 0:00:10.8]} 47. f5 {[%clk
0:00:03.2]} 47... g4 {[%clk 0:00:10.4]} 48. Kd3 {[%clk 0:00:03.5]} 48... Rd6
{[%clk 0:00:09.7]} 49. Ke4 {[%clk 0:00:04.1]} 49... Kg7 {[%clk 0:00:09.9]} 50.
Rb7 {[%clk 0:00:04.6]} 50... Kf6 {[%clk 0:00:09.4]} 51. Rb8 {[%clk 0:00:05.1]}
51... Kg5 {[%clk 0:00:08.2]} 52. Rg8+ {[%clk 0:00:05]} 52... Kh5 {[%clk
0:00:08.1]} 53. Ne2 {[%clk 0:00:03.8]} 53... Re6+ {[%clk 0:00:01.4]} 54. fxe6
{[%clk 0:00:03.8]} 54... f5+ {[%clk 0:00:01.6]} 55. Kxf5 {[%clk 0:00:03.7]}
55... b5 {[%clk 0:00:02.5]} 56. Nf4# {[%clk 0:00:04]} 1-0